{"text_format":"3","workbook":"xlsx","n_sheets":2,"sheets":["Wallstreetmojo.com","Example 1 and Example 2"],"not_rendered":{"macros":1},"read":"whole","date_system":"1900"}

{"sheet":"Wallstreetmojo.com","index":0,"n_rows":6,"n_cols":1,"rows_kept":6}
["VBA Functions Excel Template"]
[]
["Prepared by Dheeraj Vaidya, CFA, FRM"]
["dheeraj@wallstreetmojo.com"]
[]
["visit - www.wallstreetmojo.com"]

{"sheet":"Example 1 and Example 2","index":1,"n_rows":12,"n_cols":9,"rows_kept":12}
["Name","English","Maths","Acountancy","Business Studies","Economics","Total","Result","Grade"]
["Anish",99,85,57,87,95,{"$f":"SUM(B2:F2)","v":423},{"$f":"ResultOfStudents(B2:F2)","v":"Passed"},{"$f":"GradeForStudent(G2,H2)","v":"B"}]
["Chetan",33,45,56,97,88,{"$f":"SUM(B3:F3)","v":319},{"$f":"ResultOfStudents(B3:F3)","v":"Passed"},{"$f":"GradeForStudent(G3,H3)","v":"D"}]
["Rishi",24,98,69,50,59,300,{"$f":"ResultOfStudents(B4:F4)","v":"Essential Repeat"},{"$f":"GradeForStudent(G4,H4)","v":"D"}]
["Sunny",48,37,52,75,96,308,{"$f":"ResultOfStudents(B5:F5)","v":"Passed"},{"$f":"GradeForStudent(G5,H5)","v":"D"}]
["Manish",39,41,28,63,58,229,{"$f":"ResultOfStudents(B6:F6)","v":"Essential Repeat"},{"$f":"GradeForStudent(G6,H6)","v":"E"}]
["Karun",76,92,32,52,61,313,{"$f":"ResultOfStudents(B7:F7)","v":"Essential Repeat"},{"$f":"GradeForStudent(G7,H7)","v":"D"}]
["Madhur",80,52,38,57,44,271,{"$f":"ResultOfStudents(B8:F8)","v":"Passed"},{"$f":"GradeForStudent(G8,H8)","v":"D"}]
["Nisha",47,48,69,60,38,262,{"$f":"ResultOfStudents(B9:F9)","v":"Passed"},{"$f":"GradeForStudent(G9,H9)","v":"D"}]
["Nitti",35,54,47,42,66,244,{"$f":"ResultOfStudents(B10:F10)","v":"Passed"},{"$f":"GradeForStudent(G10,H10)","v":"E"}]
["Chanchal",72,59,66,95,98,390,{"$f":"ResultOfStudents(B11:F11)","v":"Passed"},{"$f":"GradeForStudent(G11,H11)","v":"B"}]
["Preeti",92,36,56,42,34,260,{"$f":"ResultOfStudents(B12:F12)","v":"Passed"},{"$f":"GradeForStudent(G12,H12)","v":"E"}]